fUST/lending_fUST_20260122
["ID","MTS","AMOUNT","RATE_DAILY","PERIOD"]
[403042116,1769095839773,-6329.0,0.00022123,7]
[403042117,1769095839783,-1085.4,0.000222,2]
[403042118,1769095839793,-150.0,0.0002236,2]
[403042119,1769095839803,-4430.87,0.00022465,4]
[403042120,1769095839813,-2000.0,0.000225,7]
[403042121,1769095839823,-170.398,0.0002252,2]
[403042122,1769095839832,-231.0,0.00022779,2]
[403042123,1769095839842,-178.0,0.00022816,2]
[403042124,1769095839851,-417.0,0.00022816,2]
[403042125,1769095839861,-157.40537128,0.00022877,30]
[403042126,1769095839871,-2000.0,0.00023,7]
[403042127,1769095839882,-1373.71,0.00023099,2]
[403042128,1769095839892,-157.40537128,0.00023178,30]
[403042129,1769095839903,-1996.4,0.000233,14]
[403042130,1769095839913,-779.0,0.000233,2]
[403042131,1769095839923,-461.67526834,0.00023369,2]
[403042132,1769095839932,-157.40537128,0.00023479,30]
[403042133,1769095839942,-2000.0,0.000235,7]
[403042134,1769095839952,-1000.0,0.000238,2]
[403042135,1769095839962,-157.40537128,0.00023808,30]
[403042136,1769095839972,-1373.71,0.00023838,2]
[403042137,1769095839982,-1373.71,0.00023848,2]
[403042138,1769095839992,-1373.71,0.00023848,2]
[403042139,1769095840002,-1373.71,0.00023848,2]
[403042140,1769095840012,-1373.71,0.00023867,2]
[403042141,1769095840022,-500.0,0.00023868,2]
[403042142,1769095840032,-500.0,0.00023878,2]
[403042143,1769095840043,-500.0,0.00023878,2]
[403042144,1769095840052,-500.0,0.00023878,2]
[403042145,1769095840062,-1373.71,0.00023898,2]
[403042147,1769095840072,-597.01677589,0.00023917,2]
[403042148,1769095840082,-2000.0,0.00024,7]
[403042149,1769095840093,-75427.41510285,0.00024,7]
[403042151,1769095840103,-422.05,0.00024,14]
[403042153,1769095840113,-288407.71449002,0.00024,7]
[403042155,1769095840123,-1023.78521775,0.00024,2]
[403042156,1769095840132,-287.904,0.00024,2]
[403042157,1769095840142,-151.0,0.00024,2]
[403042158,1769095840152,-151.0,0.00024,2]
[403042159,1769095840161,-197.666122,0.00024,2]
[403042161,1769095840171,-151.0,0.00024027,2]
[403042162,1769095840181,-1373.71,0.00024068,2]
[403042163,1769095840191,-1373.71,0.00024068,2]
[403042164,1769095840201,-1373.71,0.00024068,2]
[403042165,1769095840210,-1373.71,0.00024068,2]
[403042166,1769095840220,-1373.71,0.00024068,2]
[403042168,1769095840230,-1373.71,0.00024068,2]
[403042170,1769095840240,-1373.71,0.00024068,2]
[403042172,1769095840249,-1373.71,0.00024068,2]
[403042174,1769095840259,-1373.71,0.00024068,2]
[403042176,1769095840269,-1373.71,0.00024068,2]
[403042178,1769095840279,-1373.71,0.00024068,2]
[403042180,1769095840289,-1373.71,0.00024068,2]
[403042182,1769095840300,-1373.71,0.00024068,2]
[403042184,1769095840309,-1373.94929649,0.00024068,2]
[403042186,1769095840319,-500.0,0.00024068,2]
[403042188,1769095840330,-500.0,0.00024068,2]
[403042190,1769095840340,-500.0,0.00024068,2]
[403042192,1769095840349,-500.0,0.00024068,2]
[403042194,1769095840359,-500.0,0.00024068,2]
[403042196,1769095840369,-500.0,0.00024068,2]
[403042198,1769095840378,-500.0,0.00024068,2]
[403042200,1769095840387,-500.0,0.00024068,2]
[403042202,1769095840399,-500.0,0.00024068,2]
[403042204,1769095840409,-500.0,0.00024068,2]
[403042207,1769095840419,-500.0,0.00024068,2]
[403042209,1769095840428,-500.0,0.00024068,2]
[403042211,1769095840438,-500.0,0.00024068,2]
[403042213,1769095840448,-500.0,0.00024068,2]
[403042215,1769095840459,-500.0,0.00024068,2]
[403042217,1769095840469,-188.06199018,0.00024068,2]
[403042219,1769095840479,-500.0,0.000241,7]
[403042221,1769095840489,-181.23719074,0.00024141,2]
[403042223,1769095840499,-229.34038906,0.00024141,2]
[403042225,1769095840509,-154.87175163,0.00024141,2]
[403042227,1769095840519,-278.76915294,0.00024141,2]
[403042229,1769095840528,-495.58960522,0.00024141,2]
[403042231,1769095840540,-512189.81234674,0.00024142,2]
[403042233,1769095840549,-151.0,0.00024142,2]
[403042235,1769095840562,-151.0,0.00024142,2]
[403042237,1769095840571,-309.25152167,0.00024162,7]
[403042239,1769095840581,-1000.0,0.000243,2]
[403042241,1769095840591,-150.0,0.00024392,2]
[403042243,1769095840602,-2075.22997905,0.00024402,2]
[403042245,1769095840611,-151.0,0.00024463,2]
[403042247,1769095840621,-859.2,0.000245,7]
[403042249,1769095840632,-1126.0,0.000245,5]
[403042251,1769095840642,-200.0,0.000245,120]
[403042253,1769095840651,-2000.0,0.000245,7]
[403042255,1769095840661,-500.0,0.00024521,2]
[403042257,1769095840670,-500.0,0.00024521,2]
[403042259,1769095840679,-500.0,0.00024521,2]
[403042261,1769095840688,-180.0,0.00024521,2]
[403042263,1769095840699,-150.0,0.00024521,2]
[403042265,1769095840708,-309.209,0.00024648,30]
[403042267,1769095840717,-309.209,0.00024648,30]
[403042269,1769095840727,-156908.71401508,0.0002465,2]
[403042271,1769095840737,-514.53397614,0.0002465,2]
[403042273,1769095840746,-380.0,0.00024658,2]
[403042275,1769095840756,-500.0,0.00024658,2]
[403042277,1769095840765,-500.0,0.00024658,2]
[403042279,1769095840775,-500.0,0.00024658,2]
[403042281,1769095840784,-150.0,0.00024658,2]
[403042283,1769095840795,-500.0,0.00024658,2]
[403042285,1769095840804,-258.0,0.00024779,2]
[403042287,1769095840814,-500.0,0.00024795,2]
[403042289,1769095840823,-500.0,0.00024795,2]
[403042291,1769095840831,-500.0,0.00024795,2]
[403042293,1769095840840,-150.0,0.00024795,2]
[403042295,1769095840850,-500.0,0.00024795,2]
[403042298,1769095840859,-7388.27454712,0.000248,2]
[403042299,1769095840868,-1000.0,0.000248,2]
[403042302,1769095840878,-15787.4517246,0.00024857,2]
[403042304,1769095840887,-166.0,0.000249,3]
[403042306,1769095840897,-153.0,0.000249,3]
[403042308,1769095840906,-166.0,0.000249,3]
[403042309,1769095840916,-153.0,0.000249,3]
[403042312,1769095840926,-166.0,0.000249,3]
[403042314,1769095840935,-166.0,0.000249,3]
[403042316,1769095840944,-166.0,0.000249,3]
[403042318,1769095840954,-166.0,0.000249,3]
[403042319,1769095840963,-166.0,0.000249,3]
[403042322,1769095840973,-166.0,0.000249,3]
[403042324,1769095840982,-172.0,0.000249,3]
[403042326,1769095840992,-153.0,0.000249,3]
[403042328,1769095841001,-153.0,0.000249,3]
[403042330,1769095841011,-153.0,0.000249,3]
[403042332,1769095841021,-153.0,0.000249,3]
[403042334,1769095841030,-153.0,0.000249,3]
[403042336,1769095841041,-153.0,0.000249,3]
[403042337,1769095841050,-153.0,0.000249,3]
[403042339,1769095841060,-151.0,0.000249,2]
[403042341,1769095841070,-1077.60072743,0.000249,2]
[403042342,1769095841080,-552814.27628908,0.000249,2]
[403042360,1769095843194,-151.0,0.00024,2]
[403042361,1769095843203,-151.0,0.00024142,2]
[403042362,1769095843213,-4916.2648,0.000249,2]
[403042369,1769095843320,-3e-08,0.000249,2]
[403042388,1769096082048,-300.0,0.00017,30]
[403042389,1769096083495,-300.0,0.00017,30]
[403042390,1769096091705,-0.02097878,0.00017,30]
[403042391,1769096257002,-355.13593196,0.00016558,2]
[403042392,1769096260871,-289.37141011,0.00016558,2]
[403042393,1769096262308,-269.08,0.00016558,2]
[403042394,1769096266992,-367.33934754,0.00016558,2]
[403042395,1769096280904,151.77,4.995e-05,7]
[403042396,1769096281203,151.77,4.995e-05,7]
[403042397,1769096281504,151.77,4.995e-05,7]
[403042398,1769096351850,10000.0,0.0001631,2]
[403042399,1769096370114,2201.1,0.0001631,2]
[403042400,1769096445422,2514.5531868,0.00015893,2]
[403042401,1769096452662,5000.0,0.0001631,2]
[403042402,1769096476479,3719.07331039,0.0001631,2]
[403042403,1769096584932,500.0,0.00013273,2]
[403042404,1769096584996,913.03228336,0.00013821,2]
[403042406,1769096908908,-661.0,0.00016558,2]
[403042442,1769097032659,-300.0,0.00016788,2]
[403042443,1769097032668,-300.0,0.00016788,2]
[403042444,1769097032678,-227.0,0.00016788,2]
[403042445,1769097032687,-238.15467193,0.00016788,2]
[403042446,1769097032697,-599.09059122,0.00016788,2]
[403042447,1769097032706,-65862.01551326,0.00016789,2]
[403042448,1769097032721,-934137.98448674,0.00016789,2]
[403042449,1769097032731,-1001.26,0.00016789,2]
[403042450,1769097032741,-1001.26,0.00016789,2]
[403042451,1769097032750,-1001.26,0.00016789,2]
[403042452,1769097032759,-1001.26,0.00016789,2]
[403042453,1769097032768,-1001.26,0.00016789,2]
[403042454,1769097032778,-1001.26,0.00016789,2]
[403042455,1769097032788,-1001.26,0.00016789,2]
[403042456,1769097032797,-1001.26,0.00016789,2]
[403042457,1769097032807,-1001.26,0.00016789,2]
[403042458,1769097032816,-1001.26,0.00016789,2]
[403042459,1769097032826,-1001.26,0.00016789,2]
[403042460,1769097032835,-1001.26,0.00016789,2]
[403042461,1769097032845,-6023.9128625,0.00016888,2]
[403042462,1769097032854,-500.0,0.00016888,2]
[403042463,1769097032863,-500.0,0.00016888,2]
[403042464,1769097032872,-500.0,0.00016888,2]
[403042465,1769097032881,-500.0,0.00016888,2]
[403042466,1769097032891,-500.0,0.00016888,2]
[403042467,1769097032900,-500.0,0.00016888,2]
[403042468,1769097032910,-500.0,0.00016888,2]
[403042469,1769097032919,-500.0,0.00016888,2]
[403042470,1769097032929,-500.0,0.00016888,2]
[403042471,1769097032938,-500.0,0.00016888,2]
[403042472,1769097032947,-500.0,0.00016888,2]
[403042473,1769097032956,-500.0,0.00016888,2]
[403042474,1769097032965,-500.0,0.00016888,2]
[403042475,1769097032975,-500.0,0.00016888,2]
[403042476,1769097032984,-500.0,0.00016888,2]
[403042477,1769097032994,-500.0,0.00016888,2]
[403042478,1769097033005,-500.0,0.00016888,2]
[403042479,1769097033014,-500.0,0.00016888,2]
[403042480,1769097033023,-500.0,0.00016888,2]
[403042481,1769097033032,-500.0,0.00016888,2]
[403042482,1769097033042,-500.0,0.00016888,2]
[403042483,1769097033051,-500.0,0.00016888,2]
[403042484,1769097033060,-500.0,0.00016888,2]
[403042485,1769097033070,-500.0,0.00016888,2]
[403042486,1769097033079,-500.0,0.00016888,2]
[403042487,1769097033089,-500.0,0.00016888,2]
[403042488,1769097033098,-500.0,0.00016888,2]
[403042489,1769097033107,-500.0,0.00016888,2]
[403042490,1769097033121,-500.0,0.00016888,2]
[403042491,1769097033131,-500.0,0.00016888,2]
[403042492,1769097033140,-500.0,0.00016888,2]
[403042493,1769097033149,-500.0,0.00016888,2]
[403042494,1769097033161,-500.0,0.00016888,2]
[403042495,1769097033170,-500.0,0.00016888,2]
[403042496,1769097033181,-500.0,0.00016888,2]
[403042497,1769097033192,-500.0,0.00016888,2]
[403042498,1769097033203,-500.0,0.00016888,2]
[403042499,1769097033212,-500.0,0.00016888,2]
[403042500,1769097033221,-500.0,0.00016888,2]
[403042501,1769097033231,-500.0,0.00016888,2]
[403042502,1769097033240,-500.0,0.00016888,2]
[403042503,1769097033250,-500.0,0.00016888,2]
[403042504,1769097033259,-500.0,0.00016888,2]
[403042505,1769097033268,-500.0,0.00016888,2]
[403042506,1769097033277,-500.0,0.00016888,2]
[403042507,1769097033287,-500.0,0.00016888,2]
[403042508,1769097033296,-500.0,0.00016888,2]
[403042509,1769097033305,-500.0,0.00016888,2]
[403042510,1769097033314,-500.0,0.00016888,2]
[403042511,1769097033324,-246.56019761,0.00016888,2]
[403042512,1769097033332,-500.0,0.00016888,2]
[403042513,1769097033341,-500.0,0.00016888,2]
[403042514,1769097033350,-500.0,0.00016888,2]
[403042515,1769097033359,-500.0,0.00016888,2]
[403042516,1769097033369,-500.0,0.00016888,2]
[403042517,1769097033378,-500.0,0.00016888,2]
[403042518,1769097033388,-500.0,0.00016888,2]
[403042519,1769097033397,-500.0,0.00016888,2]
[403042520,1769097033406,-300.0,0.00016888,2]
[403042521,1769097033415,-500.0,0.00016888,2]
[403042522,1769097033424,-500.0,0.00016888,2]
[403042523,1769097033433,-500.0,0.00016888,2]
[403042524,1769097033443,-500.0,0.00016888,2]
[403042525,1769097033452,-500.0,0.00016888,2]
[403042526,1769097033461,-500.0,0.00016888,2]
[403042527,1769097033470,-500.0,0.00016888,2]
[403042528,1769097033479,-500.0,0.00016888,2]
[403042529,1769097033488,-500.0,0.00016888,2]
[403042530,1769097033497,-500.0,0.00016888,2]
[403042531,1769097033507,-500.0,0.00016888,2]
[403042532,1769097033515,-500.0,0.00016888,2]
[403042533,1769097033524,-500.0,0.00016888,2]
[403042534,1769097033534,-500.0,0.00016888,2]
[403042535,1769097033543,-500.0,0.00016888,2]
[403042536,1769097033553,-500.0,0.00016888,2]
[403042537,1769097033564,-500.0,0.00016888,2]
[403042538,1769097033573,-500.0,0.00016888,2]
[403042539,1769097033583,-500.0,0.00016888,2]
[403042540,1769097033596,-500.0,0.00016888,2]
[403042541,1769097033605,-500.0,0.00016888,2]
[403042542,1769097033616,-500.0,0.00016888,2]
[403042543,1769097033626,-500.0,0.00016888,2]
[403042544,1769097033635,-499.99999999,0.00016888,2]
[403042545,1769097033645,-1259.24,0.00016994,2]
[403042546,1769097033655,-1259.24,0.00016994,2]
[403042547,1769097033669,-380.44457996,0.00016994,2]
[403042548,1769097033687,-1259.24,0.00016995,2]
[403042549,1769097033708,-1259.24,0.00016995,2]
[403042550,1769097033720,-1259.24,0.00016995,2]
[403042551,1769097033730,-1259.24,0.00016995,2]
[403042552,1769097033740,-1259.24,0.00016995,2]
[403042553,1769097033749,-1259.24,0.00016995,2]
[403042554,1769097033759,-1259.24,0.00016995,2]
[403042555,1769097033768,-1259.24,0.00016995,2]
[403042556,1769097033778,-1259.24,0.00016995,2]
[403042557,1769097033787,-1259.24,0.00016995,2]
[403042558,1769097034034,-1259.24,0.00016995,2]
[403042559,1769097034043,-1259.24,0.00016995,2]
[403042560,1769097034053,-1259.24,0.00016995,2]
[403042561,1769097034063,-1259.24,0.00016995,2]
[403042562,1769097034072,-1259.24,0.00016995,2]
[403042563,1769097034082,-1259.24,0.00016995,2]
[403042564,1769097034092,-1259.24,0.00016995,2]
[403042565,1769097034101,-1259.24,0.00016995,2]
[403042566,1769097034111,-1259.24,0.00016995,2]
[403042567,1769097034123,-1259.24,0.00016995,2]
[403042568,1769097034132,-1259.24,0.00016995,2]
[403042569,1769097034141,-1259.33929649,0.00016995,2]
[403042570,1769097034151,-500.0,0.00016995,2]
[403042571,1769097034162,-500.0,0.00016995,2]
[403042572,1769097034171,-500.0,0.00016995,2]
[403042573,1769097034180,-500.0,0.00016995,2]
[403042574,1769097034192,-500.0,0.00016995,2]
[403042575,1769097034200,-500.0,0.00016995,2]
[403042576,1769097034209,-500.0,0.00016995,2]
[403042577,1769097034219,-500.0,0.00016995,2]
[403042578,1769097034234,-500.0,0.00016995,2]
[403042579,1769097034252,-500.0,0.00016995,2]
[403042580,1769097034263,-500.0,0.00016995,2]
[403042581,1769097034274,-500.0,0.00016995,2]
[403042582,1769097034283,-500.0,0.00016995,2]
[403042583,1769097034294,-500.0,0.00016995,2]
[403042584,1769097034305,-500.0,0.00016995,2]
[403042585,1769097034314,-500.0,0.00016995,2]
[403042586,1769097034323,-500.0,0.00016995,2]
[403042587,1769097034334,-500.0,0.00016995,2]
[403042588,1769097034343,-500.0,0.00016995,2]
[403042589,1769097034352,-500.0,0.00016995,2]
[403042590,1769097034362,-207.61741022,0.00016995,2]
[403042591,1769097034371,-420.0,0.0001834,2]
[403042592,1769097034381,-900.0,0.0001863,2]
[403042593,1769097034390,-177.0,0.00018789,2]
[403042594,1769097034399,-303.10001603,0.000189,2]
[403042595,1769097034408,-1041.66666667,0.00018984,2]
[403042596,1769097034418,-234.11872737,0.00019,2]
[403042597,1769097034427,-303.10001603,0.00019089,2]
[403042598,1769097034437,-4430.87,0.00019178,2]
[403042599,1769097034446,-1100.56916409,0.00019178,2]
[403042600,1769097034455,-234.11872737,0.000192,2]
[403042601,1769097034465,-150.14,0.000192,2]
[403042602,1769097034474,-1996.4,0.000192,2]
[403042603,1769097034483,-303.10001603,0.00019278,2]
[403042604,1769097034492,-43880.78340793,0.00019306,2]
[403042605,1769097034506,-302.0,0.00019306,2]
[403042643,1769097039818,-1001.26,0.00016789,2]
[403042644,1769097039827,-1001.26,0.00016789,2]
[403042645,1769097039836,-1001.26,0.00016789,2]
[403042646,1769097039846,-1001.26,0.00016789,2]
[403042647,1769097039856,-1001.26,0.00016789,2]
[403042648,1769097039865,-1001.26,0.00016789,2]
[403042649,1769097039875,-122745.69774737,0.00019306,2]
[403042650,1769097039884,-234.11872737,0.000194,2]
[403042651,1769097039893,-234.11872737,0.000196,2]
[403042652,1769097039903,-234.11872737,0.000198,2]
[403042653,1769097039912,-2000.0,0.0002,7]
[403042655,1769097039922,-969.5,0.00020013,10]
[403042657,1769097039931,-287.0,0.00020036,2]
[403042659,1769097039940,-1368.0,0.00020337,2]
[403042661,1769097039950,-417.0,0.00020337,2]
[403042663,1769097039959,-2000.0,0.000205,7]
[403042665,1769097039968,-161.0,0.00020712,3]
[403042667,1769097039977,-204.0,0.00020789,2]
[403042669,1769097039986,-2000.0,0.00021,7]
[403042670,1769097039995,-10000.0,0.00021453,7]
[403042673,1769097040005,-10000.0,0.00021453,7]
[403042675,1769097040014,-10000.0,0.00021453,7]
[403042676,1769097040023,-10000.0,0.00021453,7]
[403042679,1769097040033,-10000.0,0.00021453,7]
[403042680,1769097040042,-10000.0,0.00021453,7]
[403042683,1769097040053,-6329.0,0.00021453,7]
[403042684,1769097040062,-2000.0,0.000215,7]
[403042687,1769097040071,-859.2,0.000219,7]
[403042688,1769097040081,-203.19,0.000219,7]
[403042690,1769097040092,-859.2,0.00022,7]
[403042692,1769097040101,-167.0,0.00022,2]
[403042694,1769097040111,-619.0,0.00022,14]
[403042696,1769097040124,-2000.0,0.00022,7]
[403042698,1769097040133,-4430.87,0.00022465,4]
[403042701,1769097040143,-2000.0,0.000225,7]
[403042703,1769097040154,-950.39,0.000227,2]
[403042705,1769097040164,-231.0,0.00022789,2]
[403042707,1769097040173,-157.40537128,0.00022877,30]
[403042709,1769097040182,-2000.0,0.00023,7]
[403042712,1769097040194,-157.40537128,0.00023178,30]
[403042714,1769097040204,-1996.4,0.000232,14]
[403042716,1769097040213,-708.628,0.00023337,2]
[403042718,1769097040222,-417.0,0.00023337,2]
[403042720,1769097040232,-157.40537128,0.00023479,30]
[403042722,1769097040241,-2000.0,0.000235,7]
[403042724,1769097040250,-170.398,0.00023519,4]
[403042726,1769097040259,-461.67526834,0.0002357,2]
[403042728,1769097040269,-607.75678046,0.0002357,2]
[403042730,1769097040277,-157.40537128,0.00023808,30]
[403042733,1769097040286,-2000.0,0.00024,7]
[403042735,1769097040295,-1000.0,0.00024,24]
[403042737,1769097040305,-1041.66666667,0.00024,7]
[403042739,1769097040313,-1023.78521775,0.00024,2]
[403042741,1769097040323,-151.0,0.00024046,2]
[403042743,1769097040332,-500.0,0.000241,7]
[403042745,1769097040342,-478.75725327,0.00024118,2]
[403042747,1769097040351,-779.0,0.000242,2]
[403042749,1769097040360,-2075.22997905,0.00024402,2]
[403042751,1769097040369,-151.0,0.00024473,2]
[403042753,1769097040378,-2000.0,0.000245,7]
[403042755,1769097040387,-500.0,0.00024521,2]
[403042757,1769097040396,-500.0,0.00024521,2]
[403042759,1769097040406,-500.0,0.00024521,2]
[403042761,1769097040417,-180.0,0.00024521,2]
[403042763,1769097040426,-150.0,0.00024521,2]
[403042765,1769097040436,-859.2,0.000246,7]
[403042767,1769097040445,-309.209,0.00024648,30]
[403042769,1769097040454,-309.209,0.00024648,30]
[403042771,1769097040463,-500.0,0.00024658,2]
[403042773,1769097040474,-500.0,0.00024658,2]
[403042775,1769097040484,-500.0,0.00024658,2]
[403042777,1769097040493,-326.22694334,0.00024658,2]
[403042779,1769097040502,-579.37905137,0.00024658,2]
[403042781,1769097040511,-222.69118493,0.00024658,2]
[403042783,1769097040521,-400.84413287,0.00024658,2]
[403042785,1769097040530,-712.61179178,0.00024658,2]
[403042787,1769097040539,-500.0,0.00024658,2]
[403042789,1769097040549,-496.47127164,0.00024666,2]
[403042792,1769097040560,-614.7672714,0.00024767,2]
[403042794,1769097040569,-258.0,0.00024789,2]
[403042795,1769097040578,-500.0,0.00024795,2]
[403042797,1769097040588,-500.0,0.00024795,2]
[403042799,1769097040597,-500.0,0.00024795,2]
[403042801,1769097040607,-500.0,0.00024795,2]
[403042803,1769097040616,-12402.5752587,0.00024842,2]
[403042805,1769097040626,-267.54594292,0.000249,3]
[403042808,1769097040635,-166.0,0.000249,3]
[403042809,1769097040644,-166.0,0.000249,3]
[403042811,1769097040653,-166.0,0.000249,3]
[403042813,1769097040663,-166.0,0.000249,3]
[403042815,1769097040672,-166.0,0.000249,3]
[403042817,1769097040681,-166.0,0.000249,3]
[403042819,1769097040690,-166.0,0.000249,3]
[403042821,1769097040700,-166.0,0.000249,3]
[403042823,1769097040710,-153.0,0.000249,3]
[403042825,1769097040719,-172.0,0.000249,3]
[403042827,1769097040729,-153.0,0.000249,3]
[403042829,1769097040738,-153.0,0.000249,3]
[403042831,1769097040748,-153.0,0.000249,3]
[403042833,1769097040757,-153.0,0.000249,3]
[403042836,1769097040767,-153.0,0.000249,3]
[403042838,1769097040776,-153.0,0.000249,3]
[403042840,1769097040785,-153.0,0.000249,3]
[403042842,1769097040795,-153.0,0.000249,3]
[403042844,1769097040804,-500.0,0.000249,9]
[403042846,1769097040813,-221.81993032,0.000249,3]
[403042848,1769097040823,-500.0,0.000249,9]
[403042850,1769097040832,-1000.0,0.000249,2]
[403042852,1769097040843,-1000.0,0.000249,2]
[403042854,1769097040853,-1077.60072743,0.000249,2]
[403042856,1769097040862,-151.0,0.000249,2]
[403042858,1769097040871,-618346.488536,0.000249,2]
[403042860,1769097040881,-178.43217842,0.000249,2]
[403042862,1769097040891,-500.0,0.00024932,2]
[403042864,1769097040901,-500.0,0.00024932,2]
[403042867,1769097040910,-500.0,0.00024932,2]
[403042870,1769097040919,-500.0,0.00024932,2]
[403042873,1769097040928,-1063.349574,0.0002498,5]
[403042875,1769097040938,-301842.44157717,0.00025,15]
[403042877,1769097040946,-1086.62432353,0.00025,2]
[403042879,1769097040955,-2677.45120601,0.00025,2]
[403042881,1769097040966,-10364.0,0.00025,2]
[403042883,1769097040975,-500.0,0.00025,2]
[403042885,1769097040984,-200.0,0.00025,17]
[403042887,1769097040993,-99256.77706605,0.00025,8]
[403042889,1769097041002,-1597.96479447,0.00025,15]
[403042891,1769097041012,-8000.0,0.00025,4]
[403042893,1769097041022,-391.14,0.00025,14]
[403042895,1769097041031,-160.0,0.00025,14]
[403042897,1769097041041,-1000.0,0.00025,2]
[403042899,1769097041051,-160.0,0.00025,30]
[403042901,1769097041061,-690.7778346,0.00025,30]
[403042903,1769097041071,-1000.0,0.00025,15]
[403042905,1769097041080,-19758.0,0.00025,20]
[403042907,1769097041091,-378.0,0.00025,8]
[403042909,1769097041100,-57310.68358977,0.00025,10]
[403042911,1769097041110,-608.77398676,0.00025,15]
[403042913,1769097041123,-150.0,0.00025,2]
[403042915,1769097041133,-151.0,0.00025,7]
[403042917,1769097041142,-1041.66666667,0.00025,10]
[403042919,1769097041151,-1000.0,0.00025,5]
[403042921,1769097041162,-293.4384831,0.00025,30]
[403042923,1769097041172,-151.0,0.00025,7]
[403042925,1769097041182,-197.666122,0.00025,7]
[403042927,1769097041192,-198.936386,0.00025,7]
[403042929,1769097041202,-198.936386,0.00025,7]
[403042931,1769097041211,-198.936386,0.00025,7]
[403042933,1769097041220,-198.936386,0.00025,7]
[403042935,1769097041230,-1021.0,0.00025,2]
[403042937,1769097041239,-369.0,0.00025,7]
[403042939,1769097041248,-2000.0,0.00025,7]
[403042941,1769097041257,-287.904,0.00025,7]
[403042943,1769097041266,-500.0,0.00025069,2]
[403042945,1769097041275,-500.0,0.00025069,2]
[403042947,1769097041283,-500.0,0.00025069,2]
[403042949,1769097041292,-500.0,0.00025069,2]
[403042951,1769097041301,-500.0,0.000251,7]
[403042953,1769097041309,-500.0,0.00025206,2]
[403042955,1769097041318,-500.0,0.00025206,2]
[403042957,1769097041330,-500.0,0.00025206,2]
[403042959,1769097041340,-500.0,0.00025206,2]
[403042961,1769097041349,-514.84070869,0.00025214,2]
[403042963,1769097041359,-169.13166299,0.00025254,30]
[403042964,1769097041368,-950.39,0.000253,2]
[403042967,1769097041377,-1996.4,0.000253,14]
[403042968,1769097041386,-369.0,0.00025302,7]
[403042971,1769097041396,-500.0,0.00025343,2]
[403042972,1769097041406,-500.0,0.00025343,2]
[403042974,1769097041415,-500.0,0.00025343,2]
[403042977,1769097041424,-500.0,0.00025343,2]
[403042979,1769097041434,-7388.27454712,0.00025429,2]
[403042981,1769097041442,-500.0,0.0002548,2]
[403042983,1769097041451,-500.0,0.0002548,2]
[403042985,1769097041461,-500.0,0.0002548,2]
[403042987,1769097041470,-2000.0,0.000255,7]
[403042989,1769097041479,-169.13166299,0.00025507,30]
[403042991,1769097041488,-369.0,0.00025576,7]
[403042993,1769097041497,-634.0,0.00025617,2]
[403042995,1769097041507,-500.0,0.00025617,2]
[403042997,1769097041516,-500.0,0.00025617,2]